Cogmind - Beta 16 @@@ ROGUE MODE // 2025.12.07 @ 00:07:51 Player: souux Result: Destroyed by D-53 Grenadier with Mini Grenade Launcher Performance ------------- Evolutions (0) 0 Regions Visited (2) 400 Robots Destroyed (21) 105 Value Destroyed (380) 380 Prototype IDs (0) 0 Alien Tech Used (0) 0 Bonus (0) 0 TOTAL SCORE: 885 Bonus ------- None Cogmind --------- Core Integrity 0/250 Matter 280/300 Energy 88/100 System Corruption 1% Temperature Cool (0) Movement Rolling (135) Ox3 Location -10/Mines Parts ------- > --- POWER (1) -------- (None) > --- PROPULSION (2) --- Wheel Compact Wheel > --- UTILITY (2) ------ Huge Storage Unit Seismic Detector > --- WEAPON (2) ------- (None) > --- INVENTORY (25) --- Light Nuclear Core Light Treads Light Treads Improved Treads Improved Treads Improved Treads Improved Treads Compact Wheel Improved Heat Sink Large Matter Pod (150) Sensor Array Signal Interpreter Seismic Detector Light Armor Plating Light Armor Plating Light Armor Plating Light Armor Plating Particle Cannon Particle Cannon Grenade Launcher Peak State ------------ > --- POWER ------------ Light Nuclear Core > --- PROPULSION ------- Light Treads Light Treads > --- UTILITY ---------- Improved Heat Sink Large Storage Unit > --- WEAPON ----------- Particle Cannon Particle Cannon > --- INVENTORY -------- Ion Engine Improved Treads Improved Treads Improved Treads Improved Treads Wheel Wheel Compact Wheel Seismic Detector Light Armor Plating Light Armor Plating Light Armor Plating Particle Cannon Particle Cannon Grenade Launcher [Rating: 15] Favorites ----------- Power Light Nuclear Core Engine Light Ion Engine Power Core Light Nuclear Core Propulsion Wheel Treads Light Treads Leg Aluminum Leg Wheel Wheel Utility Seismic Detector Device Seismic Detector Storage Huge Storage Unit Weapon Particle Cannon Energy Cannon Particle Cannon Ballistic Gun Assault Rifle Launcher Grenade Launcher Build | -11 -10 -10 ------- Run | Yrd Mat Min Slots Evolved . | . . . Power . | . . . Propulsion . | . . . Utility . | . . . Weapon . | . . . Parts Attached 30 | 7 20 3 Power 3 | 1 2 . Engine 1 | 1 . . Core 2 | . 2 . Reactor . | . . . Propulsion 12 | 2 9 1 Treads 2 | . 2 . Leg 2 | . 2 . Wheel 8 | 2 5 1 Hover . | . . . Flight . | . . . Utility 9 | 2 5 2 Device 6 | 1 3 2 Storage 3 | 1 2 . Processor . | . . . Hackware . | . . . Protection . | . . . Artifact . | . . . Weapon 6 | 2 4 . Energy Gun . | . . . Energy Cannon 3 | . 3 . Ballistic Gun 2 | 2 . . Ballistic Cannon . | . . . Launcher 1 | . 1 . Special Weapon . | . . . Impact Weapon . | . . . Slashing Weapon . | . . . Piercing Weapon . | . . . Special Melee Weapon . | . . . Unidentified Prototypes . | . . . Parts Lost 6 | . 1 5 Power 1 | . . 1 Propulsion 2 | . . 2 Utility 1 | . 1 . Weapon 2 | . . 2 Highest Loss Streak 5 | . 1 5 To Critical Strikes . | . . . Average Backups 16 | 4 16 21 Power . | . 1 1 Propulsion 7 | 2 7 8 Utility 5 | . 4 8 Weapon 2 | . 2 3 Tool/Special . | . . . Unused Backups 14 | . 2 12 Power 1 | . 1 . Propulsion 4 | . . 4 Utility 7 | . . 7 Weapon 2 | . 1 1 Tool/Special . | . . . Average Slot Usage (%) 98 | . 99 96 Core 12 | . 12 13 Wheel 26 | . 26 26 Device 13 | . 13 14 Storage 14 | . 14 14 Energy Cannon 24 | . 24 26 Ballistic Gun 2 | . 3 . Peak Build Rating 15 | 7 15 15 Average Rating 12 | 5 12 13 On Entrance 7 | . 7 14 Avg Prop Armor Cover (%) . | . . . Naked Turns . | . . . Heaviest Build 94 | 12 94 94 Greatest Support 26 | 26 26 26 Greatest Overweight (x) 5 | . 3 5 Average Overweight (x) 1 | . 1 3 Largest Inventory Capacity 25 | 8 25 25 Average Capacity 19 | 7 19 25 Most Carried 23 | 8 21 23 Average Carried 16 | 4 16 21 Final Capacity 25 | 8 25 25 Final Carried 21 | 8 21 20 Class Distribution -------------------- 71% | Mutant 28% | Scavenger-Mutant Dominant Class ---------------- Mutant | -10/Materials Mutant | -10/Mines Resources | -11 -10 -10 ----------- Run | Yrd Mat Min Matter Collected 977 | 318 589 70 Remotely . | . . . Salvage Created 768 | 153 498 117 Parts 50 | 13 34 3 Haulers Intercepted 1 | . 1 . Recyclers Shooed . | . . . Parts Field Recycled . | . . . Retrieved Matter . | . . . Parts Self-Destructed . | . . . Prevented . | . . . Parts Restored . | . . . Kills | -11 -10 -10 ------- Run | Yrd Mat Min Combat Hostiles Destroyed 9 | . 8 1 Guns 2 | . 2 . Cannons 4 | . 3 1 AOE 3 | . 3 . Classes Destroyed 8 | 2 6 . Worker 1 | . 1 . Tunneler 4 | 3 1 . Hauler 1 | . 1 . Recycler 4 | 1 2 1 Operator 1 | . 1 . Watcher 1 | . 1 . Swarmer 3 | . 3 . Grunt 6 | . 5 1 Best Kill Streak 4 | 4 4 1 Combat Bots Only 3 | . 3 1 Max Kills in Single Turn 2 | 1 2 1 Gunslinging . | . . . Exploded 1 | . 1 . Melee . | . . . Uniques/NPCs Destroyed . | . . . Combat | -11 -10 -10 -------- Run | Yrd Mat Min Hostile Shots Fired 44 | . 26 18 Missed 6 | . 5 1 Hits 38 | . 21 17 Projectile 38 | . 21 17 AOE 14 | . . 14 Damage Taken 951 | . 302 649 Core 263 | . 26 237 Absorbed by Shields . | . . . Regen/Repaired (Parts) 13 | . 13 . Core Remaining (%) 100 | 100 . . Volleys Fired 55 | 12 40 3 Largest 2 | 2 2 2 Hottest 136 | 40 136 136 Shots Fired 106 | 24 77 5 Gun 36 | 24 12 . Cannon 66 | . 61 5 Launcher 4 | . 4 . Special . | . . . Kinetic 36 | 24 12 . Thermal 66 | . 61 5 Explosive 4 | . 4 . Electromagnetic . | . . . Robot Hit Streak 7 | 2 7 7 Robot Miss Streak 3 | 3 3 1 Penetration Max . | . . . Secondary Targets . | . . . Shots Hit Robots 55 | 9 43 3 Core Hits 28 | 6 20 2 Critical Kills . | . . . Critical Parts Destroyed . | . . . Critical Strikes . | . . . Melee Attacks . | . . . Impact . | . . . Slashing . | . . . Piercing . | . . . Sneak Attacks . | . . . Combat Hostiles . | . . . Follow-up Attacks . | . . . Damage Inflicted 1329 | 110 1156 63 Guns 203 | 110 93 . Cannons 783 | . 720 63 Explosions 343 | . 343 . Melee . | . . . Ramming . | . . . Kinetic 203 | 110 93 . Thermal 783 | . 720 63 Explosive 343 | . 343 . Electromagnetic . | . . . Impact . | . . . Slashing . | . . . Piercing . | . . . Highest Corruption 1 | . 1 1 Average Corruption 1 | . 1 1 Corruption Purged . | . . . Corruption Blocked . | . . . Effects 2 | . 1 1 Heat Flow Errors 1 | . 1 . Energy Discharges 1 | . . 1 Overload Shots . | . . . Overflow Damage 21 | . 21 . Projectiles 13 | . 13 . Explosions 8 | . 8 . Melee . | . . . Knockbacks . | . . . Impact . | . . . Kinetic . | . . . Secondary . | . . . Self-Inflicted Damage . | . . . Shots . | . . . Rammed . | . . . Targets Rammed . | . . . Kicked . | . . . Crushed . | . . . Highest Temperature 213 | . 213 81 Average Temperature 77 | . 79 32 Received Heat Transfer 156 | . 123 33 Siege Activations . | . . . Martial Activations . | . . . Shielding Activations . | . . . Robots Disrupted . | . . . Combat Hostiles . | . . . Robots Corrupted . | . . . Combat Hostiles . | . . . Parts Fried . | . . . Impact Corruptions . | . . . Robots Melted . | . . . Combat Hostiles . | . . . Parts Melted 1 | . 1 . Heat Transferred 1406 | . 1295 111 Parts Sabotaged . | . . . Parts Stolen . | . . . Parts Stripped . | . . . Power Chain Reactions . | . . . Alert | -11 -10 -10 ------- Run | Yrd Mat Min Maximum Alert Level . | . . . Low Security (%) 100 | 100 100 100 Level 1 . | . . . Level 2 . | . . . Level 3 . | . . . Level 4 . | . . . Level 5 . | . . . High Security . | . . . Max Security . | . . . Peak Influence 127 | 15 127 42 Initial 12 | . . 12 Average 27 | 2 34 8 Influence Increases 378 | 20 308 50 Destroy 0b10 Robot/C 180 | . 160 20 Destroy 0b10 Robot/NC 60 | 20 35 5 Destroy Leader 54 | . 44 10 Successful Hack 18 | . 18 . Disable Machine 30 | . 30 . Destroy Structure 21 | . 21 . Partial Spotted 15 | . . 15 Influence Decreases 378 | 20 275 83 Entered New Map 21 | . . 21 Time Decay 342 | 20 275 47 Lost Part 15 | . . 15 Squads Dispatched 1 | . 1 . Investigation . | . . . Extermination . | . . . Reinforcement 1 | . 1 . Assault . | . . . Garrison . | . . . Intercept . | . . . Searches Triggered . | . . . Construction Impeded . | . . . Haulers Reinforced . | . . . Active Scanning Responses . | . . . Cargo Convoy Interrupts . | . . . Stealth | -11 -10 -10 --------- Run | Yrd Mat Min Distress Signals 1 | . 1 . Communications Jammed . | . . . Distress Signals . | . . . Times Spotted 19 | . 14 5 Peak Tracking Total 3 | . 3 3 Tactical Retreats . | . . . Traps | -11 -10 -10 ------- Run | Yrd Mat Min Traps Triggered 3 | . 3 . Indirectly . | . . . Trap Hack Attempts . | . . . Triggered . | . . . Disarmed . | . . . Reprogrammed . | . . . Reused . | . . . Traps Extracted . | . . . Installed . | . . . Triggered . | . . . Machines | -11 -10 -10 ---------- Run | Yrd Mat Min Machines Disabled 2 | . 2 . Max in Single Turn 1 | . 1 . Machines Repaired . | . . . Machines Dismantled . | . . . Machines Sabotaged . | . . . Overloaded Fab Kills . | . . . Hacking | -11 -10 -10 --------- Run | Yrd Mat Min Machines Accessed 8 | . 8 . Terminals 7 | . 7 . Fabricators . | . . . Repair Stations 1 | . 1 . Recycling Units . | . . . Scanalyzers . | . . . Garrison Access . | . . . Total Hacks 22 | . 22 . Successful 11 | . 11 . Failed 11 | . 11 . Catastrophic 2 | . 2 . Database Lockouts . | . . . Manual 18 | . 18 . Terminals 20 | . 20 . Fabricators . | . . . Repair Stations 2 | . 2 . Recycling Units . | . . . Scanalyzers . | . . . Garrison Access . | . . . Terminal Hacks 1 | . 1 . Locate Traps 1 | . 1 . Fabricator Hacks . | . . . Repair Station Hacks 2 | . 2 . Scan Component 1 | . 1 . Repair 1 | . 1 . Recycling Unit Hacks . | . . . Scanalyzer . | . . . Garrison Access Hacks . | . . . Unauthorized Hacks 8 | . 8 . Terminals 8 | . 8 . Botnet 3 | . 3 . Skim 5 | . 5 . Fabricators . | . . . Repair Stations . | . . . Recycling Units . | . . . Scanalyzers . | . . . Garrison Access . | . . . Data Cores Recovered . | . . . Used . | . . . Hacking Detections 7 | . 7 . Full Trace Events . | . . . Feedback Events . | . . . Feedback Blocked . | . . . Robot Schematics Acquired . | . . . Robots Built . | . . . Authchips . | . . . Time . | . . . Total Robot Build Rating . | . . . Part Schematics Acquired . | . . . Parts Built . | . . . Authchips . | . . . Time . | . . . Total Part Build Rating . | . . . Part Studies Acquired . | . . . Parts Repaired 1 | . 1 . Time 38 | . 38 . Parts Recycled . | . . . Recycled Matter . | . . . Retrieved Matter . | . . . Retrieved Components . | . . . Parts Scanalyzed . | . . . Part Schematics Acquired . | . . . Parts Damaged . | . . . Bothacking | -11 -10 -10 ------------ Run | Yrd Mat Min Used RIF Installer . | . . . Robots Hacked . | . . . Non-combat . | . . . Combat . | . . . Robot Hacks Applied . | . . . Relay Couplers Released . | . . . Fabnet Peak Effective % . | . . . Robots Rewired . | . . . Allies Hacked . | . . . Hacks Repelled . | . . . Allies | -11 -10 -10 -------- Run | Yrd Mat Min Total Allies . | . . . Largest Group . | . . . Highest-Rated Group . | . . . Highest-Rated Ally . | . . . Total Orders . | . . . Ally Attacks . | . . . Total Damage . | . . . Kills . | . . . Allies Corrupted . | . . . Allies Melted . | . . . Intel | -11 -10 -10 ------- Run | Yrd Mat Min Active Infowar (turns) 1323 | 11 1052 260 Seismic 1323 | 11 1052 260 Robot Analysis Total . | . . . Derelict Logs Recovered . | . . . Drone Launches . | . . . Drone Recoveries . | . . . Exploration | -11 -10 -10 ------------- Run | Yrd Mat Min Turns Passed 1464 | 92 1104 268 Spaces Moved 904 | 44 689 171 Core 1 | 1 . . Treads . | . . . Legs . | . . . Wheels 903 | 43 689 171 Hover . | . . . Flight . | . . . Fastest Speed 50 | 50 90 135 Average Speed 119 | 89 117 135 Slowest Speed 175 | 100 135 175 Overloaded Moves . | . . . Propulsion Burnouts . | . . . Robots Hopped . | . . . Potential Cave-ins . | . . . Cave-ins Triggered . | . . . Exploration Rate (%) 44 | 3 96 33 Regions Visited 2 Branch Regions 1 Pre-discovered Areas . | . . . Known Exits Taken . | . . . Unknown Exits Taken 2 | 1 1 . Scrap Searched 1 | . . 1 Spaces Dug 4 | . 4 . Terrain Destroyed 18 | . 18 . Melee . | . . . Projectile . | . . . AOE 18 | . 18 . Terrain Rammed . | . . . Walls Destroyed . | . . . Machines Disabled . | . . . Actions | -11 -10 -10 --------- Run | Yrd Mat Min Total 1171 | 71 901 199 Wait 108 | 1 93 14 Move 902 | 43 688 171 Hop . | . . . Pick Up 32 | 8 23 1 Fast Attach 13 | 7 6 . Attach 4 | . 2 2 Detach . | . . . Swap 37 | . 30 7 Drop 20 | . 19 1 Fire 55 | 12 40 3 Melee . | . . . Ram . | . . . Kick . | . . . Crush . | . . . Escape Stasis . | . . . Rewire . | . . . Trap . | . . . Miscellaneous . | . . . Route ------- -11/Scrapyard -10/Materials (discovered 4 exits: *Mat x3 / [*Min]) -10/Mines (discovered 3 exits: Mat x2 / [*Exi]) History --------- Turn | Location | Event 14 | -11/Scrapyard | Discovered new exit (range 16) 93 | -11/Scrapyard | Entered Materials 169 | -10/Materials | Discovered new exit (range 16) 185 | -10/Materials | Met 8R-AWN 303 | -10/Materials | Repaired Lgt. Nuclear Core 303 | -10/Materials | Build established: Mutant 406 | -10/Materials | Discovered new exit (range 16) 693 | -10/Materials | Derelicts attacked the area 825 | -10/Materials | Discovered new exit (range 15) 947 | -10/Materials | Identified exit to Materials 991 | -10/Materials | Loaded intel: 1 repair station location 1068 | -10/Materials | Build established: Scavenger-Mutant 1070 | -10/Materials | Learned Storage emergency access door positions 1076 | -10/Materials | Learned 4 Recycling zone layouts 1122 | -10/Materials | Learned location of 2 exits from Subcaves 1197 | -10/Materials | Entered Mines 1199 | -10/Mines | Followed 8R-AWN into the Mines 1344 | -10/Mines | Discovered new exit (range 5) 1405 | -10/Mines | Assembled infested the area 1410 | -10/Mines | Assisted by a Guerilla fighting off Assembled 1454 | -10/Mines | Core integrity fell below 50% 1464 | -10/Mines | Core integrity fell below 20% 1465 | -10/Mines | Destroyed by D-53 Grenadier with Mini Grenade Launcher Last Messages --------------- 01405_ ALERT: Infestation in the mines, dispatching Demolisher response squad. 01410_ A derelict emerges from the shadows: "You need to get out of here! I've been tracking a group of Assembled to figure out where they're coming from, and they're closing on this area, come on!" 01431_ C-45 Heavy ARC bursts open, deploying its payload. 01431_ D-53 Grenadier unfolds itself. 01431_ R-06 Scavenger destroyed. 01431_ Particle Cannon destroyed. 01440_ Lgt. Nuclear Core destroyed. 01440_ K-01 Serf destroyed. 01441_ The unstable cave ceiling collapses. 01452_ Wheel destroyed. 01454_ The unstable cave ceiling collapses. 01455_ Particle Cannon destroyed. 01455_ Com. Wheel destroyed. 01459_ The unstable cave ceiling collapses. Map ----- +----------------------------------------------------+ | ???### #?## " #?????????????????????? | | ?????### ##??#"%##### ##?????????????????????? | | ???????###???# "#????? #??????????????????????? | | ?????????????# #?????# ##??????????????????????? | | ?????????????# #?????# #????????????????????????? | | ?????????????# #?????# #????????????????????????? | | ?????????????# ###???# #????????????????????????? | | ???????????### ##### #????????????????????????? | | ???????????# # ##???????????????????????? | | ??????????## ! #???????????????????????? | | ?????????## [ ##??????????????????????? | | ?????????# = ## ## # ##?????????????????????? | | ?????????# *! #?????????????????????? | | ?????????# # #?????????????????????? | | ?????????# # %# ##????????????????????? | | ?????????## # = # ##???????????????????? | | ??????????######## ##??????????????????? | | ???????????????## dd #??????????????????? | | ???????????????# ##??????????????????? | | ???????????????# #??????????????????? | | ???????????????# # #??????????????????? | | ???????????????# # #??????????????????? | | ???????????????## # ##??????????????????? | | ??????????????# # ##???????????????????? | | ??????????????# ## #?????????????? ?????? | | ??????????????# ## @ #?????????????? #????? | | ????????????? ### ##????????????? #????? | | ???????????? #?## ##????????????? ##???? | | ??????????? ??# #????????????? #???? | | ?????????? ## ??#!#??????##????# ?????? | | ?????????## #?# #??#%######? ##?# ??????? | | ??????????### ??# ##??#= #?? ## ???????? | | ????????????# ???# ????###### #?? ?????????? | | ????????????# ???# ?????????# #?? ??????????? | | ?????????????????# ?????????# #?? ???????????? | | ?????????????????? ?????????# #### #????????????? | | ?????????????????????????????# #????????????? | | ?????????????????????????????###### ######???????? | | ??????????????????????????????????# #???????? | | ??????????????????????????????????###### #???????? | | ????????????????????????????????######## #???????? | | ????????????????????????? $ #???????? | | ????????????????????????????????######## #???????? | | ????????????????????????????????????#### ####????? | | ????????????????????????????????????# #????? | | ????????????????????????????????????# #????? | | ????????????????????????????????????# #????? | | ????????????????????????????????????# = #????? | | ????????????????????????????????????# * #????? | | ????????????????????????????????????# ! #????? | +----------------------------------------------------+ Best States ------------- Heat Dissipation 39 Energy Generation 14 Energy Capacity 160 Matter Stores 300 Matter Capacity 300 Sight Range 16 Terrain Scan Density 10 Evasion (%) 42 Recoil Reduction 2 Item Schematics ----------------- None Robot Schematics ------------------ None Fabricated ------------ Nothing Repaired ---------- Lgt. Nuclear Core | 74% | -10/Materials Studied --------- None Alien Tech Used ----------------- None Achievements -------------- None Challenges ------------ None Game ------ Seed ConceptCentriumHammerchucker Manual? 0 Play Time 00:23:02 Cumulative 105.6 hours Start 2025.12.06 @ 23:43:37 End 2025.12.07 @ 00:07:51 Sessions 1 Manual Loads 0 Difficulty Rogue Special Mode None Game No. 90 Rogue 90 Adventurer 0 Explorer 0 Win Type - Total 1 Types 1/0/0/0/0/0/0/0/0/0 Lore% 38 Gallery% 43 Achievement% 36 Wizard Run 0 Options --------- Layout 2 ASCII 0 Keyboard 0 Movement Mouse Keybinds 0 Fullscreen 2 Font 24/Terminus Map View 50x44 Zoom Use 0% Tactical HUD 1 Map Filters NONE Filters NONE Steam 1 RUN: 42af6bb9-e140-43e8-87fc-9d698899be71